[Event "Early-Titled-Tuesday-Blitz-July-09-2024"]
[Site "Chess.com"]
[Date "2024.07.09"]
[Round "8"]
[White "alexrustemov"]
[Black "Stanbad1"]
[Result "1-0"]
[WhiteElo "2884"]
[BlackElo "2620"]
[TimeControl "180+1"]
[EndTime "9:27:58 PDT"]
[Termination "alexrustemov won by resignation"]

1. d4 {[%clk 0:03:00.9]} 1... Nf6 {[%clk 0:02:59.3]} 2. c4 {[%clk 0:03:01]} 2...
c5 {[%clk 0:02:58.6]} 3. d5 {[%clk 0:03:00.2]} 3... b5 {[%clk 0:02:59.2]} 4.
cxb5 {[%clk 0:03:00.9]} 4... a6 {[%clk 0:02:59.7]} 5. e3 {[%clk 0:03:01.3]} 5...
axb5 {[%clk 0:02:59.4]} 6. Bxb5 {[%clk 0:03:01.7]} 6... Bb7 {[%clk 0:03:00.1]}
7. Nc3 {[%clk 0:03:01.3]} 7... Qa5 {[%clk 0:02:59.2]} 8. Bd2 {[%clk 0:02:59.3]}
8... Qb6 {[%clk 0:02:55.7]} 9. a4 {[%clk 0:02:57.6]} 9... Nxd5 {[%clk
0:02:50.1]} 10. Nf3 {[%clk 0:02:58]} 10... e6 {[%clk 0:02:49.8]} 11. O-O {[%clk
0:02:57.5]} 11... Be7 {[%clk 0:02:50.1]} 12. e4 {[%clk 0:02:56.6]} 12... Nxc3
{[%clk 0:02:47.6]} 13. Bxc3 {[%clk 0:02:56.6]} 13... O-O {[%clk 0:02:48.2]} 14.
Ne5 {[%clk 0:02:48.5]} 14... d5 {[%clk 0:02:46.4]} 15. exd5 {[%clk 0:02:42.3]}
15... exd5 {[%clk 0:02:47.3]} 16. Re1 {[%clk 0:02:42.7]} 16... d4 {[%clk
0:02:46.6]} 17. Bd2 {[%clk 0:02:41.6]} 17... Bf6 {[%clk 0:02:46.5]} 18. Ng4
{[%clk 0:02:36.4]} 18... g6 {[%clk 0:02:38.2]} 19. a5 {[%clk 0:02:27]} 19...
Qxb5 {[%clk 0:02:36.9]} 20. Nxf6+ {[%clk 0:02:26.7]} 20... Kg7 {[%clk
0:02:37.4]} 21. Ng4 {[%clk 0:02:20]} 21... Qc6 {[%clk 0:02:36.1]} 22. Bh6+
{[%clk 0:02:16.5]} 22... Kg8 {[%clk 0:02:35]} 23. f3 {[%clk 0:02:16.4]} 23...
Rd8 {[%clk 0:02:33.5]} 24. Qd2 {[%clk 0:02:11.5]} 24... Nd7 {[%clk 0:02:32.2]}
25. Qf4 {[%clk 0:02:06.3]} 25... Re8 {[%clk 0:02:29]} 26. Bg5 {[%clk 0:01:59.5]}
26... f5 {[%clk 0:02:25.9]} 27. Ne5 {[%clk 0:01:50.7]} 27... Nxe5 {[%clk
0:02:25.7]} 28. Rxe5 {[%clk 0:01:50.5]} 28... Rxe5 {[%clk 0:02:23.8]} 29. Qxe5
{[%clk 0:01:50.5]} 29... Re8 {[%clk 0:02:24.4]} 30. Qf4 {[%clk 0:01:50.7]} 30...
Ba6 {[%clk 0:02:22.5]} 31. h4 {[%clk 0:01:48.2]} 31... Qd7 {[%clk 0:02:17.6]}
32. b3 {[%clk 0:01:41.6]} 32... d3 {[%clk 0:02:14.7]} 33. Kh2 {[%clk 0:01:32.2]}
33... Re2 {[%clk 0:02:03.5]} 34. Rd1 {[%clk 0:01:23.3]} 34... Re8 {[%clk
0:01:55.9]} 35. Bf6 {[%clk 0:01:20.5]} 35... Qf7 {[%clk 0:01:54.3]} 36. Ba1
{[%clk 0:01:12.1]} 36... Qxb3 {[%clk 0:01:50.3]} 37. Qc7 {[%clk 0:01:10.9]}
37... Qf7 {[%clk 0:01:48.3]} 38. Qxc5 {[%clk 0:01:09.6]} 38... Rc8 {[%clk
0:01:42.2]} 39. Qd4 {[%clk 0:01:07.9]} 39... Qc7+ {[%clk 0:01:40.8]} 40. Kh3
{[%clk 0:01:07.6]} 40... Kf7 {[%clk 0:01:31.2]} 41. Re1 {[%clk 0:01:05]} 41...
Qe7 {[%clk 0:00:56.1]} 42. Qg7+ {[%clk 0:01:03.3]} 1-0

[Event "Early-Titled-Tuesday-Blitz-July-09-2024"]
[Site "Chess.com"]
[Date "2024.07.09"]
[Round "8"]
[White "patzer-reloaded"]
[Black "Szachulec75"]
[Result "1-0"]
[WhiteElo "2352"]
[BlackElo "2234"]
[TimeControl "180+1"]
[EndTime "9:28:00 PDT"]
[Termination "patzer-reloaded won by resignation"]

1. d4 {[%clk 0:03:00.9]} 1... Nf6 {[%clk 0:02:59.4]} 2. Bf4 {[%clk 0:03:00.5]}
2... g6 {[%clk 0:02:58.8]} 3. Nc3 {[%clk 0:02:59.2]} 3... Bg7 {[%clk 0:02:59.1]}
4. e4 {[%clk 0:02:58.6]} 4... d6 {[%clk 0:02:59.5]} 5. Nf3 {[%clk 0:02:58]} 5...
O-O {[%clk 0:03:00]} 6. Qd2 {[%clk 0:02:56.6]} 6... Bg4 {[%clk 0:03:00.3]} 7.
O-O-O {[%clk 0:02:52.3]} 7... c6 {[%clk 0:03:00.1]} 8. Bh6 {[%clk 0:02:47.7]}
8... b5 {[%clk 0:02:55.3]} 9. Bd3 {[%clk 0:02:42.7]} 9... Bxf3 {[%clk 0:02:49]}
10. gxf3 {[%clk 0:02:41.9]} 10... e5 {[%clk 0:02:49.5]} 11. Bxg7 {[%clk
0:02:15.2]} 11... Kxg7 {[%clk 0:02:32.6]} 12. dxe5 {[%clk 0:02:14]} 12... dxe5
{[%clk 0:02:31.9]} 13. h4 {[%clk 0:02:14.1]} 13... Nh5 {[%clk 0:02:31]} 14. Ne2
{[%clk 0:02:07.8]} 14... Qf6 {[%clk 0:02:24.9]} 15. Ng3 {[%clk 0:02:00.5]} 15...
Qxf3 {[%clk 0:02:08.1]} 16. Nxh5+ {[%clk 0:01:50.3]} 16... Qxh5 {[%clk
0:02:02.4]} 17. Qc3 {[%clk 0:01:46.5]} 17... Re8 {[%clk 0:01:53.9]} 18. f4
{[%clk 0:01:43.9]} 18... Na6 {[%clk 0:01:28.6]} 19. Qxc6 {[%clk 0:01:39.3]}
19... Nb4 {[%clk 0:01:27.3]} 20. Qxb5 {[%clk 0:01:37.9]} 20... Nxd3+ {[%clk
0:01:24.9]} 21. Rxd3 {[%clk 0:01:33.2]} 21... Rab8 {[%clk 0:01:21.4]} 22. Qa5
{[%clk 0:01:23.5]} 22... exf4 {[%clk 0:01:15.3]} 23. Qxh5 {[%clk 0:01:22.1]}
23... gxh5 {[%clk 0:01:15.8]} 24. Rg1+ {[%clk 0:01:14.5]} 24... Kf6 {[%clk
0:01:16]} 25. Rd6+ {[%clk 0:01:07.5]} 25... Ke5 {[%clk 0:01:11.8]} 26. Rd7
{[%clk 0:01:07]} 26... Kxe4 {[%clk 0:01:06.9]} 27. Rxf7 {[%clk 0:01:04.8]} 27...
Kf3 {[%clk 0:01:01.5]} 28. Rf1+ {[%clk 0:01:03]} 28... Kg3 {[%clk 0:00:59.7]}
29. R7xf4 {[%clk 0:00:55.1]} 29... Re1+ {[%clk 0:00:56.3]} 30. Rxe1 {[%clk
0:00:53.9]} 30... Kxf4 {[%clk 0:00:56.7]} 31. b3 {[%clk 0:00:52.8]} 1-0

[Event "Early-Titled-Tuesday-Blitz-July-09-2024"]
[Site "Chess.com"]
[Date "2024.07.09"]
[Round "8"]
[White "suspiciumchess"]
[Black "David_Arutinian"]
[Result "0-1"]
[WhiteElo "2474"]
[BlackElo "2834"]
[TimeControl "180+1"]
[EndTime "9:28:02 PDT"]
[Termination "David_Arutinian won by checkmate"]

1. c4 {[%clk 0:02:56]} 1... e5 {[%clk 0:02:59.4]} 2. a3 {[%clk 0:02:55.6]} 2...
Nf6 {[%clk 0:02:56.4]} 3. Nc3 {[%clk 0:02:53.2]} 3... d5 {[%clk 0:02:54.8]} 4.
cxd5 {[%clk 0:02:53.1]} 4... Nxd5 {[%clk 0:02:55.7]} 5. e3 {[%clk 0:02:53.7]}
5... Nc6 {[%clk 0:02:49.4]} 6. Qc2 {[%clk 0:02:53.8]} 6... Nxc3 {[%clk
0:02:47.8]} 7. bxc3 {[%clk 0:02:52.6]} 7... Bd6 {[%clk 0:02:48]} 8. Nf3 {[%clk
0:02:49.6]} 8... O-O {[%clk 0:02:47.6]} 9. Bc4 {[%clk 0:02:47.4]} 9... Kh8
{[%clk 0:02:46.1]} 10. O-O {[%clk 0:02:46.4]} 10... f5 {[%clk 0:02:45.9]} 11. d3
{[%clk 0:02:16.1]} 11... Qe7 {[%clk 0:02:36.4]} 12. Bd5 {[%clk 0:02:06.9]} 12...
Nd8 {[%clk 0:02:33.1]} 13. e4 {[%clk 0:01:57.3]} 13... c6 {[%clk 0:02:32.7]} 14.
Ba2 {[%clk 0:01:47.7]} 14... fxe4 {[%clk 0:02:12.3]} 15. dxe4 {[%clk 0:01:46.9]}
15... Ne6 {[%clk 0:02:13]} 16. Be3 {[%clk 0:01:42.2]} 16... Nf4 {[%clk
0:02:12.5]} 17. Rad1 {[%clk 0:00:48]} 17... Bg4 {[%clk 0:02:11.2]} 18. Bxf4
{[%clk 0:00:28.3]} 18... Rxf4 {[%clk 0:02:10.7]} 19. Rd3 {[%clk 0:00:26.9]}
19... Bxa3 {[%clk 0:02:05.2]} 20. Rfd1 {[%clk 0:00:19.4]} 20... Raf8 {[%clk
0:01:59]} 21. Qd2 {[%clk 0:00:15.8]} 21... Bc5 {[%clk 0:01:56.9]} 22. Rd8 {[%clk
0:00:09.2]} 22... Bxf3 {[%clk 0:01:50.2]} 23. gxf3 {[%clk 0:00:08.5]} 23... Rxf3
{[%clk 0:01:48.8]} 24. Qd7 {[%clk 0:00:03.7]} 24... Qg5+ {[%clk 0:01:25.4]} 25.
Kh1 {[%clk 0:00:03.5]} 25... Rxf2 {[%clk 0:01:25.2]} 26. Qe8 {[%clk 0:00:01.9]}
26... Qg2# {[%clk 0:01:24.1]} 0-1

[Event "Early-Titled-Tuesday-Blitz-July-09-2024"]
[Site "Chess.com"]
[Date "2024.07.09"]
[Round "8"]
[White "yesilikeorangejuice"]
[Black "EvilMorty23"]
[Result "0-1"]
[WhiteElo "2512"]
[BlackElo "2408"]
[TimeControl "180+1"]
[EndTime "9:28:02 PDT"]
[Termination "EvilMorty23 won by resignation"]

1. e4 {[%clk 0:03:00.9]} 1... e6 {[%clk 0:02:59.8]} 2. d4 {[%clk 0:02:55.1]}
2... d5 {[%clk 0:03:00.7]} 3. e5 {[%clk 0:02:54.8]} 3... c5 {[%clk 0:03:00.2]}
4. c3 {[%clk 0:02:54.2]} 4... Nc6 {[%clk 0:03:01.1]} 5. Nf3 {[%clk 0:02:53.7]}
5... Qb6 {[%clk 0:03:00.3]} 6. Na3 {[%clk 0:02:53.7]} 6... f6 {[%clk 0:02:55]}
7. Bd3 {[%clk 0:02:51.9]} 7... cxd4 {[%clk 0:02:30.9]} 8. cxd4 {[%clk
0:02:50.5]} 8... Bb4+ {[%clk 0:02:07.3]} 9. Bd2 {[%clk 0:02:47]} 9... Bxa3
{[%clk 0:02:07.4]} 10. bxa3 {[%clk 0:02:46.9]} 10... Nxd4 {[%clk 0:02:07.7]} 11.
Qa4+ {[%clk 0:02:45.6]} 11... Nc6 {[%clk 0:02:07.3]} 12. Qg4 {[%clk 0:02:42.8]}
12... Qc7 {[%clk 0:02:04.3]} 13. Qh5+ {[%clk 0:02:33.9]} 13... Qf7 {[%clk
0:01:36.8]} 14. Qg4 {[%clk 0:02:26.8]} 14... fxe5 {[%clk 0:01:19.9]} 15. Ng5
{[%clk 0:02:26.5]} 15... Qf6 {[%clk 0:01:18.4]} 16. Nxh7 {[%clk 0:02:24.3]}
16... Qe7 {[%clk 0:01:10]} 17. Bg6+ {[%clk 0:02:20.1]} 17... Kd7 {[%clk
0:01:09.6]} 18. Ng5 {[%clk 0:01:39.9]} 18... Nf6 {[%clk 0:01:06]} 19. Qe2 {[%clk
0:01:37.4]} 19... e4 {[%clk 0:00:55.2]} 20. Rc1 {[%clk 0:01:14.6]} 20... Rh6
{[%clk 0:00:54.6]} 21. Bb4 {[%clk 0:01:04.4]} 21... Nxb4 {[%clk 0:00:51.7]} 22.
Nf7 {[%clk 0:00:52.7]} 22... Nd3+ {[%clk 0:00:45.8]} 23. Kd2 {[%clk 0:00:47.8]}
23... Rxg6 {[%clk 0:00:45.5]} 24. Rc3 {[%clk 0:00:39.9]} 24... Qxf7 {[%clk
0:00:44.5]} 25. Rhc1 {[%clk 0:00:39.8]} 25... Ne8 {[%clk 0:00:42.5]} 0-1

[Event "Early-Titled-Tuesday-Blitz-July-09-2024"]
[Site "Chess.com"]
[Date "2024.07.09"]
[Round "8"]
[White "KVAIDAN"]
[Black "BaylavChess"]
[Result "1-0"]
[WhiteElo "2331"]
[BlackElo "2419"]
[TimeControl "180+1"]
[EndTime "9:28:15 PDT"]
[Termination "KVAIDAN won on time"]

1. f4 {[%clk 0:03:00]} 1... e5 {[%clk 0:02:57.9]} 2. e4 {[%clk 0:02:59.2]} 2...
d5 {[%clk 0:02:51.4]} 3. Nf3 {[%clk 0:02:55.4]} 3... dxe4 {[%clk 0:02:39.3]} 4.
Nxe5 {[%clk 0:02:54.8]} 4... Nc6 {[%clk 0:02:17.9]} 5. Bb5 {[%clk 0:02:53.8]}
5... Bd7 {[%clk 0:01:05]} 6. Nxc6 {[%clk 0:02:54.7]} 6... bxc6 {[%clk
0:01:04.8]} 7. Bc4 {[%clk 0:02:54.1]} 7... Bc5 {[%clk 0:01:02.7]} 8. Qh5 {[%clk
0:02:46.8]} 8... Qe7 {[%clk 0:00:59.4]} 9. Bxf7+ {[%clk 0:02:32.9]} 9... Qxf7
{[%clk 0:01:00.3]} 10. Qxc5 {[%clk 0:02:32.9]} 10... Qxf4 {[%clk 0:01:01]} 11.
d3 {[%clk 0:02:20.3]} 11... Qxc1+ {[%clk 0:00:55.2]} 12. Ke2 {[%clk 0:02:20.4]}
12... Bg4+ {[%clk 0:00:50.6]} 13. Kf2 {[%clk 0:02:19.2]} 13... Qf4+ {[%clk
0:00:50.7]} 14. Ke1 {[%clk 0:02:13.4]} 14... Ne7 {[%clk 0:00:35.7]} 15. Nd2
{[%clk 0:02:07.7]} 15... exd3 {[%clk 0:00:28.1]} 16. cxd3 {[%clk 0:01:55.1]}
16... O-O {[%clk 0:00:27.4]} 17. Qc4+ {[%clk 0:01:54.6]} 17... Qxc4 {[%clk
0:00:27.1]} 18. Nxc4 {[%clk 0:01:55.1]} 18... Nd5 {[%clk 0:00:27.2]} 19. d4
{[%clk 0:01:46.6]} 19... Rae8+ {[%clk 0:00:20.8]} 20. Ne5 {[%clk 0:01:46.9]}
20... c5 {[%clk 0:00:20.3]} 21. Kd2 {[%clk 0:01:41.3]} 21... Rf2+ {[%clk
0:00:14.9]} 22. Kd3 {[%clk 0:01:40.7]} 22... Bf5+ {[%clk 0:00:13.3]} 23. Kc4
{[%clk 0:01:39.6]} 23... Nb6+ {[%clk 0:00:10]} 24. Kxc5 {[%clk 0:01:38]} 24...
Rc2+ {[%clk 0:00:10.2]} 25. Kb4 {[%clk 0:01:35.3]} 25... a5+ {[%clk 0:00:05.6]}
26. Kb3 {[%clk 0:01:29.3]} 26... a4+ {[%clk 0:00:05.7]} 27. Ka3 {[%clk
0:01:29.7]} 27... c5 {[%clk 0:00:02.3]} 28. Rac1 {[%clk 0:01:20.5]} 1-0

[Event "Early-Titled-Tuesday-Blitz-July-09-2024"]
[Site "Chess.com"]
[Date "2024.07.09"]
[Round "8"]
[White "rionelG"]
[Black "PedroGil25"]
[Result "0-1"]
[WhiteElo "2440"]
[BlackElo "2637"]
[TimeControl "180+1"]
[EndTime "9:28:16 PDT"]
[Termination "PedroGil25 won on time"]

1. e4 {[%clk 0:01:57.2]} 1... b6 {[%clk 0:02:57.7]} 2. d3 {[%clk 0:01:55.9]}
2... Bb7 {[%clk 0:02:58.3]} 3. g3 {[%clk 0:01:56.4]} 3... g6 {[%clk 0:02:57.9]}
4. Bg2 {[%clk 0:01:56.6]} 4... Bg7 {[%clk 0:02:58.4]} 5. Nf3 {[%clk 0:01:56.8]}
5... d6 {[%clk 0:02:57.4]} 6. O-O {[%clk 0:01:57.2]} 6... e5 {[%clk 0:02:57.7]}
7. Re1 {[%clk 0:01:57.7]} 7... Nd7 {[%clk 0:02:57.2]} 8. c3 {[%clk 0:01:57.8]}
8... Ngf6 {[%clk 0:02:56.6]} 9. Nbd2 {[%clk 0:01:56.9]} 9... O-O {[%clk
0:02:57.2]} 10. Nf1 {[%clk 0:01:56.7]} 10... Re8 {[%clk 0:02:57.6]} 11. h3
{[%clk 0:01:54.8]} 11... a5 {[%clk 0:02:57.1]} 12. a4 {[%clk 0:01:53.5]} 12...
Nc5 {[%clk 0:02:56.2]} 13. Qc2 {[%clk 0:01:52.8]} 13... Qd7 {[%clk 0:02:42.2]}
14. Bg5 {[%clk 0:01:50.9]} 14... h6 {[%clk 0:02:41.5]} 15. Bxf6 {[%clk
0:01:50.7]} 15... Bxf6 {[%clk 0:02:42.4]} 16. Ne3 {[%clk 0:01:50.6]} 16... Bg7
{[%clk 0:02:41.3]} 17. Nd2 {[%clk 0:01:46.2]} 17... Rad8 {[%clk 0:02:40.8]} 18.
Ndc4 {[%clk 0:01:34.4]} 18... Rf8 {[%clk 0:02:30.5]} 19. Rad1 {[%clk 0:01:21.6]}
19... Qxa4 {[%clk 0:02:27.1]} 20. Qxa4 {[%clk 0:01:02]} 20... Nxa4 {[%clk
0:02:28]} 21. d4 {[%clk 0:01:02]} 21... exd4 {[%clk 0:02:19.7]} 22. cxd4 {[%clk
0:01:01.7]} 22... Rfe8 {[%clk 0:02:09.7]} 23. e5 {[%clk 0:00:46.8]} 23... Bxg2
{[%clk 0:02:07.1]} 24. Kxg2 {[%clk 0:00:47.7]} 24... dxe5 {[%clk 0:02:06.4]} 25.
dxe5 {[%clk 0:00:47.5]} 25... Rxd1 {[%clk 0:02:02.5]} 26. Rxd1 {[%clk
0:00:46.9]} 26... Bxe5 {[%clk 0:02:02]} 27. Nd5 {[%clk 0:00:29.3]} 27... Nxb2
{[%clk 0:01:51.5]} 28. Nxb2 {[%clk 0:00:17.2]} 28... Bxb2 {[%clk 0:01:52.4]} 29.
Nxc7 {[%clk 0:00:17.4]} 29... Rc8 {[%clk 0:01:51.9]} 30. Nd5 {[%clk 0:00:17]}
30... Rb8 {[%clk 0:01:43.3]} 31. Ne7+ {[%clk 0:00:09.8]} 31... Kf8 {[%clk
0:01:38.4]} 32. Nc6 {[%clk 0:00:08.9]} 32... Rc8 {[%clk 0:01:38.6]} 33. Na7
{[%clk 0:00:06.1]} 33... Rc2 {[%clk 0:01:38.1]} 34. Rd6 {[%clk 0:00:05]} 34...
a4 {[%clk 0:01:36.3]} 35. Rxb6 {[%clk 0:00:02.6]} 35... Rxf2+ {[%clk 0:01:33.8]}
0-1

[Event "Early-Titled-Tuesday-Blitz-July-09-2024"]
[Site "Chess.com"]
[Date "2024.07.09"]
[Round "8"]
[White "eightbyeightchess"]
[Black "anderson2361"]
[Result "0-1"]
[WhiteElo "2436"]
[BlackElo "2257"]
[TimeControl "180+1"]
[EndTime "9:28:17 PDT"]
[Termination "anderson2361 won on time"]

1. e4 {[%clk 0:03:00.9]} 1... c5 {[%clk 0:02:59.9]} 2. Nf3 {[%clk 0:02:55.2]}
2... Nf6 {[%clk 0:02:59.9]} 3. e5 {[%clk 0:02:55.1]} 3... Nd5 {[%clk 0:02:59.5]}
4. c3 {[%clk 0:02:54.9]} 4... Nc6 {[%clk 0:02:55.6]} 5. Bc4 {[%clk 0:02:54.4]}
5... Nb6 {[%clk 0:02:54.1]} 6. Bb3 {[%clk 0:02:53.1]} 6... d5 {[%clk 0:02:53.6]}
7. exd6 {[%clk 0:02:52.6]} 7... Qxd6 {[%clk 0:02:53.9]} 8. O-O {[%clk
0:02:53.2]} 8... Be6 {[%clk 0:02:54]} 9. Bxe6 {[%clk 0:02:51.7]} 9... Qxe6
{[%clk 0:02:54.9]} 10. Re1 {[%clk 0:02:52]} 10... Qd7 {[%clk 0:02:55.1]} 11. d4
{[%clk 0:02:41.8]} 11... cxd4 {[%clk 0:02:54.7]} 12. cxd4 {[%clk 0:02:42.7]}
12... e6 {[%clk 0:02:54.9]} 13. Nc3 {[%clk 0:02:41.2]} 13... Be7 {[%clk
0:02:52.6]} 14. Bg5 {[%clk 0:02:35.1]} 14... O-O {[%clk 0:02:51.1]} 15. Bxe7
{[%clk 0:02:33.8]} 15... Nxe7 {[%clk 0:02:52]} 16. Ne5 {[%clk 0:02:33.7]} 16...
Qd8 {[%clk 0:02:46.9]} 17. Qh5 {[%clk 0:02:08.4]} 17... Ng6 {[%clk 0:02:33.6]}
18. Ne4 {[%clk 0:01:25]} 18... Nd5 {[%clk 0:02:12.8]} 19. Ng5 {[%clk 0:00:33.4]}
19... Nf6 {[%clk 0:02:06.8]} 20. Qh3 {[%clk 0:00:33.1]} 20... Qd5 {[%clk
0:02:01.9]} 21. Rac1 {[%clk 0:00:24.3]} 21... Rac8 {[%clk 0:02:00.8]} 22. Rxc8
{[%clk 0:00:22.2]} 22... Rxc8 {[%clk 0:01:59.7]} 23. Ngxf7 {[%clk 0:00:16.4]}
23... Nf4 {[%clk 0:01:52.9]} 24. Qf3 {[%clk 0:00:07]} 24... Qxf3 {[%clk
0:01:24.2]} 25. gxf3 {[%clk 0:00:07.9]} 25... Rc2 {[%clk 0:01:24.3]} 26. Nd6
{[%clk 0:00:06.3]} 26... Rxb2 {[%clk 0:01:23.9]} 27. Nec4 {[%clk 0:00:05.1]}
27... Rxa2 {[%clk 0:01:16.8]} 28. Nxb7 {[%clk 0:00:05]} 28... Ra4 {[%clk
0:01:17.4]} 29. Ne5 {[%clk 0:00:01.3]} 29... Rxd4 {[%clk 0:01:15.8]} 30. Ra1
{[%clk 0:00:01.5]} 30... Rd5 {[%clk 0:01:11.8]} 0-1

[Event "Early-Titled-Tuesday-Blitz-July-09-2024"]
[Site "Chess.com"]
[Date "2024.07.09"]
[Round "8"]
[White "neistoviupryam"]
[Black "Smiechu"]
[Result "1-0"]
[WhiteElo "2342"]
[BlackElo "2436"]
[TimeControl "180+1"]
[EndTime "9:28:17 PDT"]
[Termination "neistoviupryam won by resignation"]

1. e4 {[%clk 0:03:00.9]} 1... c5 {[%clk 0:02:56.8]} 2. d4 {[%clk 0:02:56]} 2...
cxd4 {[%clk 0:02:56.3]} 3. c3 {[%clk 0:02:56]} 3... d3 {[%clk 0:02:56]} 4. Bxd3
{[%clk 0:02:55.5]} 4... g6 {[%clk 0:02:56.3]} 5. c4 {[%clk 0:02:56]} 5... Bg7
{[%clk 0:02:56.6]} 6. Nc3 {[%clk 0:02:56.7]} 6... Nc6 {[%clk 0:02:57.1]} 7. Nf3
{[%clk 0:02:56.8]} 7... Nf6 {[%clk 0:02:57.3]} 8. h3 {[%clk 0:02:56.9]} 8... d6
{[%clk 0:02:57.2]} 9. O-O {[%clk 0:02:57.2]} 9... O-O {[%clk 0:02:57.6]} 10. Qe2
{[%clk 0:02:57.6]} 10... Be6 {[%clk 0:02:57.1]} 11. Bf4 {[%clk 0:02:57.9]} 11...
h6 {[%clk 0:02:54.2]} 12. Rac1 {[%clk 0:02:57.6]} 12... Rc8 {[%clk 0:02:53.8]}
13. b3 {[%clk 0:02:57.2]} 13... Qa5 {[%clk 0:02:53.6]} 14. Bb1 {[%clk
0:02:54.1]} 14... Nh5 {[%clk 0:02:48.3]} 15. Bd2 {[%clk 0:02:53.2]} 15... Qd8
{[%clk 0:02:43.2]} 16. Rfd1 {[%clk 0:02:49.6]} 16... a6 {[%clk 0:02:40.4]} 17.
Be3 {[%clk 0:02:40.1]} 17... Qa5 {[%clk 0:02:35.9]} 18. Nd5 {[%clk 0:02:36.9]}
18... Bxd5 {[%clk 0:02:33.3]} 19. exd5 {[%clk 0:02:36.4]} 19... Ne5 {[%clk
0:02:21.5]} 20. Nxe5 {[%clk 0:02:34.1]} 20... dxe5 {[%clk 0:02:22.4]} 21. Bd2
{[%clk 0:02:07.3]} 21... Qc7 {[%clk 0:02:18.4]} 22. Re1 {[%clk 0:01:58]} 22...
Qd6 {[%clk 0:02:13.2]} 23. Bc3 {[%clk 0:01:54.3]} 23... Nf4 {[%clk 0:02:11.1]}
24. Qf3 {[%clk 0:01:52.9]} 24... b5 {[%clk 0:02:06]} 25. Bd2 {[%clk 0:01:47.6]}
25... f5 {[%clk 0:01:37.8]} 26. Bxf4 {[%clk 0:01:33.4]} 26... exf4 {[%clk
0:01:37.8]} 27. Re6 {[%clk 0:01:32.5]} 27... Qa3 {[%clk 0:01:37.6]} 28. Qxf4
{[%clk 0:01:13.9]} 28... g5 {[%clk 0:01:18.9]} 29. Qd2 {[%clk 0:01:06.4]} 29...
bxc4 {[%clk 0:01:15.6]} 30. bxc4 {[%clk 0:01:02.1]} 30... Rfd8 {[%clk
0:01:12.2]} 31. Rce1 {[%clk 0:00:46.6]} 31... Rxc4 {[%clk 0:01:03.8]} 32. Rxe7
{[%clk 0:00:43.8]} 32... Bc3 {[%clk 0:00:53.6]} 33. Qd3 {[%clk 0:00:42.7]} 33...
Bxe1 {[%clk 0:00:50.4]} 34. Qxa3 {[%clk 0:00:41.4]} 34... Rxd5 {[%clk
0:00:47.4]} 35. Rxe1 {[%clk 0:00:38.9]} 1-0

[Event "Early-Titled-Tuesday-Blitz-July-09-2024"]
[Site "Chess.com"]
[Date "2024.07.09"]
[Round "8"]
[White "Ratkovic_Miloje"]
[Black "champ2005"]
[Result "0-1"]
[WhiteElo "2791"]
[BlackElo "3039"]
[TimeControl "180+1"]
[EndTime "9:28:20 PDT"]
[Termination "champ2005 won by resignation"]

1. d4 {[%clk 0:03:00.9]} 1... Nf6 {[%clk 0:02:59.6]} 2. c4 {[%clk 0:03:00.2]}
2... g6 {[%clk 0:02:59.8]} 3. Nc3 {[%clk 0:02:59.6]} 3... Bg7 {[%clk 0:03:00.4]}
4. Nf3 {[%clk 0:02:57.9]} 4... O-O {[%clk 0:03:00.1]} 5. Bg5 {[%clk 0:02:54]}
5... d6 {[%clk 0:02:59]} 6. Qd2 {[%clk 0:02:53.3]} 6... Nbd7 {[%clk 0:02:58.2]}
7. Bh6 {[%clk 0:02:52.2]} 7... e5 {[%clk 0:02:57.7]} 8. Bxg7 {[%clk 0:02:49.2]}
8... Kxg7 {[%clk 0:02:58.6]} 9. e3 {[%clk 0:02:49.3]} 9... b6 {[%clk 0:02:54.2]}
10. Be2 {[%clk 0:02:45.7]} 10... Bb7 {[%clk 0:02:51.8]} 11. O-O {[%clk
0:02:42.5]} 11... Re8 {[%clk 0:02:26.5]} 12. Rfd1 {[%clk 0:02:36.4]} 12... exd4
{[%clk 0:02:09.7]} 13. Nxd4 {[%clk 0:02:30.7]} 13... Nc5 {[%clk 0:01:54.3]} 14.
Qc2 {[%clk 0:02:25.9]} 14... Qe7 {[%clk 0:01:48.4]} 15. Bf3 {[%clk 0:02:22.9]}
15... Bxf3 {[%clk 0:01:48.1]} 16. Nxf3 {[%clk 0:02:23.8]} 16... a5 {[%clk
0:01:43.7]} 17. Rd4 {[%clk 0:02:22.5]} 17... Ne6 {[%clk 0:01:43.6]} 18. Rd2
{[%clk 0:02:18.7]} 18... Kg8 {[%clk 0:01:42.4]} 19. h3 {[%clk 0:02:18.2]} 19...
Nc5 {[%clk 0:01:41.9]} 20. Rd4 {[%clk 0:02:17.1]} 20... Qd7 {[%clk 0:01:39.3]}
21. Rad1 {[%clk 0:02:15.8]} 21... Ne6 {[%clk 0:01:32.4]} 22. Nd5 {[%clk
0:02:06.4]} 22... Nxd5 {[%clk 0:01:31.7]} 23. Rxd5 {[%clk 0:02:06.4]} 23... Qe7
{[%clk 0:01:31.5]} 24. Nd4 {[%clk 0:01:53.7]} 24... Nc5 {[%clk 0:01:31]} 25. Nf3
{[%clk 0:01:50.2]} 25... Qf6 {[%clk 0:01:31.1]} 26. R5d4 {[%clk 0:01:46.6]}
26... Re7 {[%clk 0:01:30.3]} 27. Rf4 {[%clk 0:01:46.7]} 27... Qg7 {[%clk
0:01:30.1]} 28. Nd4 {[%clk 0:01:45.5]} 28... Rae8 {[%clk 0:01:29.8]} 29. Nc6
{[%clk 0:01:44.6]} 29... Re6 {[%clk 0:01:25.3]} 30. b3 {[%clk 0:01:41.8]} 30...
f5 {[%clk 0:01:21.7]} 31. a3 {[%clk 0:01:39.2]} 31... Ne4 {[%clk 0:01:19.7]} 32.
b4 {[%clk 0:01:33.2]} 32... axb4 {[%clk 0:01:20.6]} 33. axb4 {[%clk 0:01:33.3]}
33... Ra8 {[%clk 0:01:20.6]} 34. c5 {[%clk 0:01:10.7]} 34... Qc3 {[%clk
0:01:10]} 35. Qxc3 {[%clk 0:00:38.9]} 35... Nxc3 {[%clk 0:01:10.9]} 36. Re1
{[%clk 0:00:39.2]} 36... dxc5 {[%clk 0:01:08.3]} 37. Rc4 {[%clk 0:00:38.2]}
37... Nb5 {[%clk 0:01:03.4]} 0-1